Cogmind - Beta 11 X6 @@@ ROGUE MODE // 2021.07.24 @ 16:56:43 Player: PlasticHeart Result: Self-destructed Performance ------------- Evolutions (4) 2000 Regions Visited (14) 2800 Robots Destroyed (121) 605 Value Destroyed (2465) 2465 Prototype IDs (25) 500 Alien Tech Used (0) 0 Bonus (487) 487 TOTAL SCORE: 8857 Bonus ------- High Alert Combat Kills 33 Follower Combat Kills 175 Met Imprinter 300 Friendly Fire -21 Cogmind --------- Core Integrity 357/850 Matter 226/300 Energy 37/100 System Corruption 10% Temperature Cool (0) Movement Core (50) Location -6/Waste Parts ------- > --- POWER (1) -------- (None) > --- PROPULSION (4) --- (None) > --- UTILITY (8) ------ (None) > --- WEAPON (2) ------- (None) > --- INVENTORY (5) ---- Cooled Aerolev Unit Peak State ------------ > --- POWER ------------ Micro Fission Core > --- PROPULSION ------- Cooled Airjet Cooled Airjet Cooled Aerolev Unit Linear Gravjet > --- UTILITY ---------- Medium Storage Unit Experimental Sensor Array Improved Signal Interpreter Hacking Suite Hacking Suite Hacking Suite Hacking Suite Makeshift System Shield > --- WEAPON ----------- Improved Datajack Makeshift Sword > --- INVENTORY -------- Cooled Aerolev Unit Cooled Aerolev Unit Improved Antigrav System Advanced Armor Integrity Analyzer Powered Armor Powered Armor Component Analysis Suite Slug Cannon Bore Cannon CR-A16's Pointy Stick [Rating: 69] Favorites ----------- Power Micro Fission Core Engine Light Angular Momentum Engine Power Core Micro Fission Core Propulsion Aerolev Unit Leg Improved Titanium Leg Wheel Wheel Hover Unit Aerolev Unit Utility Hacking Suite Device Experimental Sensor Array Storage Medium Storage Unit Processor Improved Signal Interpreter Hackware Hacking Suite Protection Hardened Light Armor Plating Weapon Improved Assault Rifle Energy Gun Heavy EM Shotgun Ballistic Gun Improved Assault Rifle Ballistic Cannon Bore Cannon Launcher Mini Grenade Launcher Slashing Weapon Makeshift Sword Piercing Weapon CR-A16's Pointy Stick Special Melee Weapon Datajack Build | -11 -10 -10 -9 -9 -8 -7 -7 -7 -7 -7 -7 -6 -6 -6 ------- Run | Scr Mat Min Mat Min Mat Fac Was Fac Low Low Zio Pro Fac Was Slots Evolved 8 | . . . 2 . 2 2 . . . . . . 2 . Power . | . . . . . . . . . . . . . . . Propulsion 2 | . . . 1 . 1 . . . . . . . . . Utility 6 | . . . 1 . 1 2 . . . . . . 2 . Weapon . | . . . . . . . . . . . . . . . Parts Attached 138 | 7 15 10 27 3 37 9 3 4 . 4 3 . 10 6 Power 13 | 1 1 2 3 1 4 . . 1 . . . . . . Engine 9 | 1 1 2 1 . 4 . . . . . . . . . Core 4 | . . . 2 1 . . . 1 . . . . . . Reactor . | . . . . . . . . . . . . . . . Propulsion 44 | 2 4 2 11 2 15 2 . 2 . . 1 . 2 1 Treads . | . . . . . . . . . . . . . . . Leg 11 | . . . 7 . 4 . . . . . . . . . Wheel 20 | 2 4 2 4 2 6 . . . . . . . . . Hover 13 | . . . . . 5 2 . 2 . . 1 . 2 1 Flight . | . . . . . . . . . . . . . . . Utility 47 | 2 7 2 7 . 9 6 1 1 . 2 . . 7 3 Device 13 | . . . . . 3 2 . . . 2 . . 5 1 Storage 12 | 2 3 . 3 . 2 . 1 1 . . . . . . Processor 3 | . . . 1 . 1 1 . . . . . . . . Hackware 5 | . . . . . . 3 . . . . . . 2 . Protection 14 | . 4 2 3 . 3 . . . . . . . . 2 Artifact . | . . . . . . . . . . . . . . . Weapon 34 | 2 3 4 6 . 9 1 2 . . 2 2 . 1 2 Energy Gun 2 | . . . 2 . . . . . . . . . . . Energy Cannon . | . . . . . . . . . . . . . . . Ballistic Gun 17 | 2 3 2 4 . 6 . . . . . . . . . Ballistic Cannon 5 | . . 1 . . . . 1 . . 1 . . . 2 Launcher 2 | . . 1 . . 1 . . . . . . . . . Special Weapon . | . . . . . . . . . . . . . . . Impact Weapon . | . . . . . . . . . . . . . . . Slashing Weapon 4 | . . . . . 2 . . . . 1 1 . . . Piercing Weapon 1 | . . . . . . . . . . . 1 . . . Special Melee Weapon 3 | . . . . . . 1 1 . . . . . 1 . Unidentified Prototypes 2 | . . . 1 . 1 . . . . . . . . . Parts Lost 19 | . 3 1 . 1 3 . . . . . . . 3 8 Power 4 | . 1 1 . . 1 . . . . . . . . 1 Propulsion 9 | . 2 . . 1 1 . . . . . . . 2 3 Utility 3 | . . . . . 1 . . . . . . . . 2 Weapon 3 | . . . . . . . . . . . . . 1 2 Highest Loss Streak 8 | . 3 1 . 1 2 . . . . . . . 3 8 Average Slot Usage (%) 98 | . 99 99 99 88 93 100 100 100 100 100 100 100 97 85 Engine 5 | . 13 13 2 . 8 7 7 2 . . . . . . Core 4 | . . . 8 11 . . . 4 7 7 7 7 6 5 Leg 8 | . . . 29 . 16 . . . . . . . . . Wheel 8 | . 28 28 2 22 13 . . . . . . . . . Hover 13 | . . . . . . 30 30 30 30 30 30 30 25 19 Device 4 | . . . . . 8 15 7 7 7 7 7 7 5 4 Storage 8 | . 14 14 11 11 9 . 7 7 7 7 7 7 6 5 Processor 6 | . . . 10 11 9 7 7 7 7 7 7 7 6 6 Hackware 11 | . . . . . . 22 23 23 23 23 23 23 33 30 Protection 6 | . 13 14 11 11 8 . . . . . . . . . Ballistic Gun 12 | . 27 26 21 22 17 . . . . . . . . . Slashing Weapon 3 | . . . . . . 7 7 7 7 6 7 7 6 5 Special Melee Weapon 2 | . . . . . . 6 5 7 7 7 7 7 4 5 Naked Turns . | . . . . . . . . . . . . . . . Heaviest Build 66 | 13 34 39 58 56 66 15 31 23 19 29 19 19 21 19 Greatest Support 80 | 26 26 26 55 44 80 32 32 33 33 33 33 33 34 34 Greatest Overweight (x) 3 | . 1 1 3 1 3 . . . . . . . 1 2 Average Overweight (x) . | . . 1 . 1 . . . . . . . . . . Largest Inventory Capacity 25 | 8 15 15 20 20 25 20 10 10 10 10 10 10 10 10 Average Capacity 13 | 6 9 15 18 20 20 5 10 10 10 10 10 10 10 9 Most Carried 21 | 5 14 15 20 20 21 12 10 10 10 10 10 10 10 10 Average Carried 13 | 2 8 14 17 19 19 4 8 9 10 10 9 9 9 9 Final Capacity 20 | 8 15 15 20 20 20 5 10 10 10 10 10 10 10 5 Final Carried 20 | 2 14 15 19 20 13 5 10 10 10 10 10 10 10 1 Class Distribution -------------------- 40% | Mutant 37% | Hacker-Mutant 14% | Scavenger-Mutant 7% | Hacker-Scout Dominant Class ---------------- Mutant | -10/Materials Mutant | -10/Mines Scavenger-Mutant | -9/Materials Mutant | -9/Mines Mutant | -8/Materials Hacker-Scout | -7/Factory Hacker-Mutant | -7/Waste Hacker-Mutant | -7/Factory Hacker-Mutant | -7/Lower Caves Hacker-Mutant | -7/Lower Caves Hacker-Mutant | -7/Zion Hacker-Mutant | -6/Proximity Caves Hacker-Mutant | -6/Factory Hacker-Mutant | -6/Waste Resources | -11 -10 -10 -9 -9 -8 -7 -7 -7 -7 -7 -7 -6 -6 -6 ----------- Run | Scr Mat Min Mat Min Mat Fac Was Fac Low Low Zio Pro Fac Was Matter Collected 3624 | 290 401 303 642 103 1248 302 142 40 . 54 30 . 69 . Remotely . | . . . . . . . . . . . . . . . Salvage Created 5147 | 59 707 398 1124 233 1501 122 729 109 . 61 . . 104 . Parts 261 | 1 43 19 59 20 90 6 2 9 . 3 . . 9 . Haulers Intercepted 12 | . 2 . 3 . 4 2 . 1 . . . . . . Recyclers Shooed 6 | . 2 . 2 . 2 . . . . . . . . . Parts Field Recycled . | . . . . . . . . . . . . . . . Retrieved Matter . | . . . . . . . . . . . . . . . Parts Self-Destructed 13 | . . . . . . . . . . 3 . 10 . . Prevented . | . . . . . . . . . . . . . . . Kills | -11 -10 -10 -9 -9 -8 -7 -7 -7 -7 -7 -7 -6 -6 -6 ------- Run | Scr Mat Min Mat Min Mat Fac Was Fac Low Low Zio Pro Fac Was Combat Hostiles Destroyed 66 | . 10 8 12 6 26 . . . . 1 . . 3 . Melee 3 | . . . . . . . . . . . . . 3 . Guns 53 | . 10 6 12 6 19 . . . . . . . . . Cannons 1 | . . . . . . . . . . 1 . . . . AOE 9 | . . 2 . . 7 . . . . . . . . . Classes Destroyed 12 | 1 5 2 2 1 1 . . . . . . . . . Worker 18 | . 4 3 2 . 6 1 . 1 . . . . 1 . Tunneler 2 | . . . . 2 . . . . . . . . . . Hauler 12 | . 2 . 3 . 4 2 . 1 . . . . . . Recycler 12 | 1 3 2 4 . 2 . . . . . . . . . Operator 5 | . . . 2 . 2 . . 1 . . . . . . Watcher 8 | . 3 . 3 . 1 . . 1 . . . . . . Swarmer 22 | . 6 1 2 3 7 . . . . . . . 3 . Grunt 29 | . 4 4 6 3 12 . . . . . . . . . Sentry 10 | . . . 4 . 6 . . . . . . . . . Demolisher 1 | . . 1 . . . . . . . . . . . . Hunter 2 | . . . . . 1 . . . . 1 . . . . Decomposer 1 | . . . . . . . . . . 1 . . . . Assembled 2 | . . 2 . . . . . . . . . . . . Best Kill Streak 10 | 1 7 3 5 3 10 2 . 1 . 1 . . 3 . Combat Bots Only 8 | . 4 2 5 3 8 . . . . 1 . . 3 . Max Kills in Single Turn 4 | 1 1 2 2 1 4 1 . 1 . 1 . . 1 . Gunslinging 1 | . . . 1 . . . . . . . . . . . Exploded 2 | . . 1 . . 2 . . . . . . . . . Melee 1 | . . . . . . . . . . . . . 1 . Uniques/NPCs Destroyed . | . . . . . . . . . . . . . . . Combat | -11 -10 -10 -9 -9 -8 -7 -7 -7 -7 -7 -7 -6 -6 -6 -------- Run | Scr Mat Min Mat Min Mat Fac Was Fac Low Low Zio Pro Fac Was Damage Taken 4179 | . 482 323 936 291 1179 . . . . 27 . 122 392 427 Core 999 | . 73 77 142 59 106 . . . . . . 49 108 385 Absorbed by Shields 527 | . . . . . 424 . . . . 10 . . 93 . Core Remaining (%) 72 | 100 . 40 . 49 80 . . . . . . 93 . . Volleys Fired 321 | 5 60 28 68 13 129 . 16 . . 2 . . . . Largest 2 | 2 2 2 2 2 2 . 1 . . 1 . . . . Hottest 100 | 40 40 40 100 46 46 . 57 . . 57 . . . . Shots Fired 613 | 10 120 52 136 26 251 . 16 . . 2 . . . . Gun 586 | 10 120 48 136 26 246 . . . . . . . . . Cannon 18 | . . . . . . . 16 . . 2 . . . . Launcher 9 | . . 4 . . 5 . . . . . . . . . Special . | . . . . . . . . . . . . . . . Kinetic 592 | 10 120 48 124 26 246 . 16 . . 2 . . . . Thermal . | . . . . . . . . . . . . . . . Explosive 9 | . . 4 . . 5 . . . . . . . . . Electromagnetic 12 | . . . 12 . . . . . . . . . . . Robot Hit Streak 30 | 5 9 8 13 18 30 . 5 . . 6 . . . . Robot Miss Streak 5 | 3 5 2 3 1 5 . 1 . . . . . . . Penetration Max . | . . . . . . . . . . . . . . . Secondary Targets 6 | . 1 . 2 2 1 . . . . . . . . . Max Gunslinging Chain 1 | . 1 . 1 1 1 . . . . . . . . . Shots Hit Robots 480 | 6 78 41 100 23 184 13 13 8 . 3 2 . 6 3 Core Hits 196 | 2 34 21 35 12 75 3 4 4 . 1 . . 4 1 Critical Kills 6 | . 1 . . 1 . . 3 . . 1 . . . . Critical Parts Destroyed 5 | . . . . . 3 . 1 . . 1 . . . . Critical Strikes 17 | . 1 . . 1 3 . 10 . . 2 . . . . Destroy 17 | . 1 . . 1 3 . 10 . . 2 . . . . Melee Attacks 204 | . . . . . 2 38 . 55 18 26 2 5 55 3 Impact . | . . . . . . . . . . . . . . . Slashing 197 | . . . . . 2 35 . 53 18 26 . 5 55 3 Piercing . | . . . . . . . . . . . . . . . Sneak Attacks 16 | . . . . . . 6 . 6 . 1 2 . 1 . Combat Hostiles 1 | . . . . . . 1 . . . . . . . . Follow-up Attacks . | . . . . . . . . . . . . . . . Damage Inflicted 8639 | 61 859 641 1615 346 3174 610 306 564 . 122 . . 290 51 Guns 6046 | 61 859 420 1554 346 2806 . . . . . . . . . Cannons 323 | . . . . . . . 306 . . 17 . . . . Explosions 650 | . . 221 61 . 368 . . . . . . . . . Melee 1619 | . . . . . . 610 . 564 . 105 . . 290 50 Ramming 1 | . . . . . . . . . . . . . . 1 Kinetic 6137 | 61 859 420 1322 346 2806 . 306 . . 17 . . . . Thermal 61 | . . . 61 . . . . . . . . . . . Explosive 589 | . . 221 . . 368 . . . . . . . . . Electromagnetic 232 | . . . 232 . . . . . . . . . . . Impact . | . . . . . . . . . . . . . . . Slashing 1619 | . . . . . . 610 . 564 . 105 . . 290 50 Piercing . | . . . . . . . . . . . . . . . Highest Corruption 10 | . . . . . 1 . . . . . . . . 10 Average Corruption 1 | . . . . . 1 . . . . . . . . 10 Corruption Purged . | . . . . . . . . . . . . . . . Effects 7 | . . . . . 5 . . . . . . . . 2 Message Errors 4 | . . . . . 3 . . . . . . . . 1 Energy Discharges 1 | . . . . . 1 . . . . . . . . . Misdirections 1 | . . . . . . . . . . . . . . 1 Weapon Failures 1 | . . . . . 1 . . . . . . . . . Overload Shots . | . . . . . . . . . . . . . . . Overflow Damage 191 | . . . . . . 4 . 83 . 100 . . 4 . Projectiles . | . . . . . . . . . . . . . . . Explosions . | . . . . . . . . . . . . . . . Melee 191 | . . . . . . 4 . 83 . 100 . . 4 . Knockbacks . | . . . . . . . . . . . . . . . Impact . | . . . . . . . . . . . . . . . Kinetic . | . . . . . . . . . . . . . . . Secondary . | . . . . . . . . . . . . . . . Self-Inflicted Damage 24 | . . . 24 . . . . . . . . . . . Shots 1 | . . . 1 . . . . . . . . . . . Rammed 1 | . . . . . . . . . . . . . . 1 Targets Rammed 1 | . . . . . . . . . . . . . . 1 Kicked . | . . . . . . . . . . . . . . . Crushed . | . . . . . . . . . . . . . . . Highest Temperature 153 | . 18 67 147 64 30 . 153 . . 28 . 2 . . Average Temperature 44 | . 8 32 67 42 6 . 76 . . 15 . 2 . . Received Heat Transfer 1409 | . 150 135 462 81 548 . . . . . . 33 . . Siege Activations . | . . . . . . . . . . . . . . . Robots Corrupted 2 | . . . 2 . . . . . . . . . . . Combat Hostiles . | . . . . . . . . . . . . . . . Parts Fried 1 | . . . 1 . . . . . . . . . . . Impact Corruptions . | . . . . . . . . . . . . . . . Robots Melted . | . . . . . . . . . . . . . . . Combat Hostiles . | . . . . . . . . . . . . . . . Parts Melted 1 | . . . 1 . . . . . . . . . . . Heat Transferred 100 | . . . 100 . . . . . . . . . . . Parts Sabotaged . | . . . . . . . . . . . . . . . Parts Stolen . | . . . . . . . . . . . . . . . Parts Stripped . | . . . . . . . . . . . . . . . Power Chain Reactions 2 | . . . 2 . . . . . . . . . . . Missiles Intercepted . | . . . . . . . . . . . . . . . Alert | -11 -10 -10 -9 -9 -8 -7 -7 -7 -7 -7 -7 -6 -6 -6 ------- Run | Scr Mat Min Mat Min Mat Fac Was Fac Low Low Zio Pro Fac Was Peak Influence 572 | 5 155 127 200 140 442 572 163 421 . . . . 196 40 Initial 159 | . 3 2 . 7 . 119 159 114 . . . . 92 10 Average 124 | 1 63 66 72 103 239 271 160 93 . . . . 80 28 Maximum Alert Level 2 | . . . 1 . 2 2 . 2 . . . . . . Low Security (%) 78 | 100 100 100 97 100 19 49 100 89 . . . . 100 100 Level 1 16 | . . . 2 . 76 21 . 2 . . . . . . Level 2 4 | . . . . . 3 29 . 7 . . . . . . Level 3 . | . . . . . . . . . . . . . . . Level 4 . | . . . . . . . . . . . . . . . Level 5 . | . . . . . . . . . . . . . . . High Security . | . . . . . . . . . . . . . . . Max Security . | . . . . . . . . . . . . . . . Squads Dispatched 18 | . . . 2 1 4 3 . 4 . . . 1 3 . Investigation 4 | . . . . 1 1 2 . . . . . . . . Extermination 4 | . . . . . . 1 . 1 . . . . 2 . Reinforcement 9 | . . . 2 . 3 . . 3 . . . . 1 . Assault 1 | . . . . . . . . . . . . 1 . . Garrison . | . . . . . . . . . . . . . . . Intercept . | . . . . . . . . . . . . . . . Construction Impeded . | . . . . . . . . . . . . . . . Haulers Reinforced . | . . . . . . . . . . . . . . . Active Scanning Responses . | . . . . . . . . . . . . . . . Cargo Convoy Interrupts 1 | . . . . . . . . 1 . . . . . . Stealth | -11 -10 -10 -9 -9 -8 -7 -7 -7 -7 -7 -7 -6 -6 -6 --------- Run | Scr Mat Min Mat Min Mat Fac Was Fac Low Low Zio Pro Fac Was Distress Signals 8 | . 1 . 4 . 3 . . . . . . . . . Communications Jammed . | . . . . . . . . . . . . . . . Distress Signals . | . . . . . . . . . . . . . . . Times Spotted 155 | . 16 8 32 8 49 4 . 10 . 1 . 6 16 5 Peak Tracking Total 9 | . 6 2 8 4 6 2 . 5 . 1 . 9 6 5 Tactical Retreats 13 | . . . 1 . 2 1 . 2 . . . 2 5 . Traps | -11 -10 -10 -9 -9 -8 -7 -7 -7 -7 -7 -7 -6 -6 -6 ------- Run | Scr Mat Min Mat Min Mat Fac Was Fac Low Low Zio Pro Fac Was Traps Triggered 5 | . 1 . . 1 1 1 . . . . . . 1 . Indirectly . | . . . . . . . . . . . . . . . Trap Hack Attempts . | . . . . . . . . . . . . . . . Triggered . | . . . . . . . . . . . . . . . Disarmed 6 | . 6 . . . . . . . . . . . . . Reprogrammed . | . . . . . . . . . . . . . . . Reused . | . . . . . . . . . . . . . . . Traps Extracted . | . . . . . . . . . . . . . . . Installed 1 | . . . . . . . . . . . . 1 . . Triggered . | . . . . . . . . . . . . . . . Machines | -11 -10 -10 -9 -9 -8 -7 -7 -7 -7 -7 -7 -6 -6 -6 ---------- Run | Scr Mat Min Mat Min Mat Fac Was Fac Low Low Zio Pro Fac Was Machines Disabled 2 | . . . 2 . . . . . . . . . . . Max in Single Turn 1 | . . . 1 . . . . . . . . . . . Garrison Access 6 | . . . . . . 1 . 2 . . . . 3 . Machines Sabotaged . | . . . . . . . . . . . . . . . Garrisons Compromised . | . . . . . . . . . . . . . . . Overloaded Fab Kills . | . . . . . . . . . . . . . . . Fab Network Shutdowns 1 | . . . . . . 1 . . . . . . . . Hacking | -11 -10 -10 -9 -9 -8 -7 -7 -7 -7 -7 -7 -6 -6 -6 --------- Run | Scr Mat Min Mat Min Mat Fac Was Fac Low Low Zio Pro Fac Was Machines Accessed 75 | . 9 . 7 2 7 10 . 19 2 1 . . 18 . Terminals 47 | . 8 . 5 . 5 7 . 11 . . . . 11 . Fabricators 6 | . . . . . . 2 . 2 . . . . 2 . Repair Stations 7 | . 1 . 1 . 1 . . 3 . . . . 1 . Recycling Units . | . . . . . . . . . . . . . . . Scanalyzers 4 | . . . 1 . 1 . . 1 . . . . 1 . Garrison Access 6 | . . . . . . 1 . 2 . . . . 3 . Total Hacks 207 | . 24 . 25 2 22 30 . 44 5 1 . . 54 . Successful 151 | . 15 . 15 2 10 19 . 37 5 1 . . 47 . Failed 56 | . 9 . 10 . 12 11 . 7 . . . . 7 . Catastrophic 4 | . 1 . 1 . . . . 2 . . . . . . Database Lockouts . | . . . . . . . . . . . . . . . Manual 79 | . 14 . 4 . 4 15 . 20 . . . . 22 . Terminals 129 | . 20 . 14 . 15 22 . 25 . . . . 33 . Fabricators 24 | . . . . . . 7 . 7 . . . . 10 . Repair Stations 22 | . 4 . 2 . 5 . . 8 . . . . 3 . Recycling Units . | . . . . . . . . . . . . . . . Scanalyzers 17 | . . . 9 . 2 . . 2 . . . . 4 . Garrison Access 7 | . . . . . . 1 . 2 . . . . 4 . Terminal Hacks 62 | . 7 . 6 2 5 7 . 11 5 1 . . 18 . Record 4 | . . . . . . . . . 4 . . . . . Part Schematic 3 | . . . . . . . . 1 . . . . 2 . Robot Analysis 2 | . 1 . 1 . . . . . . . . . . . Prototype ID Bank 9 | . 1 . 1 . 1 1 . 2 . . . . 3 . Open Door 4 | . . . . 2 . . . . 1 1 . . . . Branch Access Points 2 | . . . 1 . . . . 1 . . . . . . Machine Index 1 | . . . . . . . . 1 . . . . . . Unreport Threat 7 | . 2 . 2 . 1 . . . . . . . 2 . Locate Traps 8 | . 1 . . . 1 . . 1 . . . . 5 . Disarm Traps 1 | . 1 . . . . . . . . . . . . . Recall Investigation 4 | . . . . . 1 3 . . . . . . . . Recall Extermination 3 | . . . . . . 1 . 1 . . . . 1 . Recall Reinforcements 2 | . . . . . . 1 . 1 . . . . . . Hauler Manifests 4 | . 1 . 1 . . . . . . . . . 2 . Zone Layout 8 | . . . . . 1 1 . 3 . . . . 3 . Fabricator Hacks 16 | . . . . . . 3 . 5 . . . . 8 . Load Schematic 7 | . . . . . . 1 . 2 . . . . 4 . Build 9 | . . . . . . 2 . 3 . . . . 4 . Repair Station Hacks 17 | . 4 . 2 . 2 . . 7 . . . . 2 . Scan Component 9 | . 2 . 1 . 1 . . 4 . . . . 1 . Repair 8 | . 2 . 1 . 1 . . 3 . . . . 1 . Recycling Unit Hacks . | . . . . . . . . . . . . . . . Scanalyzer 14 | . . . 6 . 2 . . 2 . . . . 4 . Insert Component 7 | . . . 3 . 1 . . 1 . . . . 2 . Analyze 7 | . . . 3 . 1 . . 1 . . . . 2 . Garrison Access Hacks 6 | . . . . . . 1 . 2 . . . . 3 . Seal Access 6 | . . . . . . 1 . 2 . . . . 3 . Unauthorized Hacks 36 | . 4 . 1 . 1 8 . 10 . . . . 12 . Terminals 30 | . 4 . 1 . 1 6 . 8 . . . . 10 . Track 10 | . 1 . . . . 2 . 2 . . . . 5 . Assimilate 6 | . . . . . . 2 . 3 . . . . 1 . Botnet 13 | . 2 . 1 . 1 2 . 3 . . . . 4 . Disrupt 1 | . 1 . . . . . . . . . . . . . Fabricators 6 | . . . . . . 2 . 2 . . . . 2 . Prioritize 4 | . . . . . . 1 . 2 . . . . 1 . Siphon 1 | . . . . . . . . . . . . . 1 . Download 1 | . . . . . . 1 . . . . . . . . Repair Stations . | . . . . . . . . . . . . . . . Recycling Units . | . . . . . . . . . . . . . . . Scanalyzers . | . . . . . . . . . . . . . . . Garrison Access . | . . . . . . . . . . . . . . . Data Cores Recovered 1 | . . . . . . . . 1 . . . . . . Used 1 | . . . . . . . . 1 . . . . . . Hacking Detections 50 | . 9 . 6 . 6 7 . 12 . . . . 10 . Full Trace Events 2 | . . . . . 1 1 . . . . . . . . Feedback Events 1 | . . . . . 1 . . . . . . . . . Corruption 1 | . . . . . 1 . . . . . . . . . Feedback Blocked . | . . . . . . . . . . . . . . . Robot Schematics Acquired . | . . . . . . . . . . . . . . . Robots Built . | . . . . . . . . . . . . . . . Matter . | . . . . . . . . . . . . . . . Time . | . . . . . . . . . . . . . . . Total Robot Build Rating . | . . . . . . . . . . . . . . . Part Schematics Acquired 9 | . . . 2 . 1 1 . 1 . . . . 4 . Parts Built 8 | . . . . . . 2 . 2 . . . . 4 . Matter 1680 | . . . . . . 438 . 504 . . . . 738 . Time 678 | . . . . . . 174 . 268 . . . . 236 . Total Part Build Rating 32 | . . . . . . 6 . 8 . . . . 18 . Parts Repaired 8 | . 2 . 1 . 1 . . 3 . . . . 1 . Time 464 | . 52 . 136 . 44 . . 196 . . . . 36 . Parts Recycled . | . . . . . . . . . . . . . . . Recycled Matter . | . . . . . . . . . . . . . . . Retrieved Matter . | . . . . . . . . . . . . . . . Retrieved Components . | . . . . . . . . . . . . . . . Parts Scanalyzed 6 | . . . 2 . 1 . . 1 . . . . 2 . Part Schematics Acquired 5 | . . . 2 . 1 . . . . . . . 2 . Parts Damaged 1 | . . . 1 . . . . . . . . . . . Bothacking | -11 -10 -10 -9 -9 -8 -7 -7 -7 -7 -7 -7 -6 -6 -6 ------------ Run | Scr Mat Min Mat Min Mat Fac Was Fac Low Low Zio Pro Fac Was Used RIF Installer . | . . . . . . . . . . . . . . . Robots Hacked 5 | . . . . . . 2 . 1 . . 2 . . . Non-combat 5 | . . . . . . 2 . 1 . . 2 . . . Combat . | . . . . . . . . . . . . . . . Robot Hacks Applied 6 | . . . . . . 2 . 2 . . 2 . . . parse_system 3 | . . . . . . . . 1 . . 2 . . . no_distress 1 | . . . . . . . . 1 . . . . . . find_chute 1 | . . . . . . 1 . . . . . . . . find_recycling 1 | . . . . . . 1 . . . . . . . . Relay Couplers Released . | . . . . . . . . . . . . . . . Robots Rewired 1 | . . . . . . 1 . . . . . . . . Allies Hacked . | . . . . . . . . . . . . . . . Hacks Repelled . | . . . . . . . . . . . . . . . Allies | -11 -10 -10 -9 -9 -8 -7 -7 -7 -7 -7 -7 -6 -6 -6 -------- Run | Scr Mat Min Mat Min Mat Fac Was Fac Low Low Zio Pro Fac Was Total Allies 12 | . . 2 . 1 . 3 . 3 . . 2 . 1 . Largest Group 3 | . . 2 2 1 1 2 2 3 1 1 3 3 1 . Highest-Rated Group 86 | . . 49 49 31 31 36 36 62 26 26 86 86 10 . Highest-Rated Ally 31 | . . 31 31 31 31 26 26 26 26 26 31 31 10 . Total Orders 1 | . . . . . . . . . . 1 . . . . STAY 1 | . . . . . . . . . . 1 . . . . Ally Attacks 42 | . . . 8 1 4 . . . . . . 29 . . Total Damage 624 | . . . 64 21 40 . . . . . . 499 . . Kills 9 | . . . 2 . . . . . . . . 7 . . Allies Corrupted . | . . . . . . . . . . . . . . . Allies Melted . | . . . . . . . . . . . . . . . Intel | -11 -10 -10 -9 -9 -8 -7 -7 -7 -7 -7 -7 -6 -6 -6 ------- Run | Scr Mat Min Mat Min Mat Fac Was Fac Low Low Zio Pro Fac Was Robot Analysis Total 2 | . 1 . 1 . . . . . . . . . . . Derelict Logs Recovered 8 | . . 1 . 2 . . . . 3 1 . 1 . . Drone Launches . | . . . . . . . . . . . . . . . Drone Recoveries . | . . . . . . . . . . . . . . . Exploration | -11 -10 -10 -9 -9 -8 -7 -7 -7 -7 -7 -7 -6 -6 -6 ------------- Run | Scr Mat Min Mat Min Mat Fac Was Fac Low Low Zio Pro Fac Was Turns Passed 11572 | 55 1045 896 2131 426 1842 794 189 1428 491 581 469 177 983 65 Spaces Moved 13613 | 34 825 717 1015 308 1050 1136 356 2808 1091 1009 1187 364 1638 75 Core 9 | 9 . . . . . . . . . . . . . . Treads . | . . . . . . . . . . . . . . . Legs 1283 | . . . 858 . 425 . . . . . . . . . Wheels 2656 | 25 825 717 157 308 624 . . . . . . . . . Hover 9665 | . . . . . 1 1136 356 2808 1091 1009 1187 364 1638 75 Flight . | . . . . . . . . . . . . . . . Fastest Speed 35 | 50 90 95 95 105 101 40 40 35 35 35 35 35 35 35 Average Speed 60 | 77 92 103 158 109 115 42 40 36 35 35 35 35 35 38 Slowest Speed 370 | 90 105 105 280 115 370 45 40 40 35 35 35 35 111 170 Overloaded Moves . | . . . . . . . . . . . . . . . Propulsion Burnouts . | . . . . . . . . . . . . . . . Robots Hopped . | . . . . . . . . . . . . . . . Cave-ins Triggered . | . . . . . . . . . . . . . . . Exploration Rate (%) 65 | 4 99 97 62 61 70 28 96 57 95 87 85 55 48 40 Regions Visited 14 Branch Regions 6 Pre-discovered Areas 4 | . . . . 2 . . . . 1 1 . . . . Known Exits Taken 6 | . . . 1 . . . . 1 1 1 1 1 . . Unknown Exits Taken 5 | 1 1 1 . 1 1 . . . . . . . . . Scrap Searched 15 | . . 2 . 1 . . . . 3 4 3 2 . . Spaces Dug 154 | . . . . . 2 23 . 44 18 25 . 5 37 . Terrain Destroyed 219 | . . 26 6 . 30 23 5 44 18 25 . 5 37 . Melee 154 | . . . . . 2 23 . 44 18 25 . 5 37 . Projectile 5 | . . . . . . . 5 . . . . . . . AOE 60 | . . 26 6 . 28 . . . . . . . . . Terrain Rammed . | . . . . . . . . . . . . . . . Walls Destroyed . | . . . . . . . . . . . . . . . Machines Disabled . | . . . . . . . . . . . . . . . Actions | -11 -10 -10 -9 -9 -8 -7 -7 -7 -7 -7 -7 -6 -6 -6 --------- Run | Scr Mat Min Mat Min Mat Fac Was Fac Low Low Zio Pro Fac Was Total 16168 | 52 996 819 1408 370 1432 1414 384 3165 1181 1206 1238 408 1988 107 Wait 1691 | . 59 54 247 43 171 216 5 288 73 166 39 35 275 20 Move 13601 | 33 824 716 1014 307 1049 1136 355 2807 1090 1008 1186 363 1638 75 Hop . | . . . . . . . . . . . . . . . Pick Up 95 | 6 25 5 17 1 12 4 5 6 . . 4 2 7 1 Fast Attach 41 | 3 3 1 15 1 13 . . 1 . . . . 2 2 Attach 34 | 4 5 . 2 . 7 7 . . . . . . 5 4 Detach 4 | . . . 2 . 1 1 . . . . . . . . Swap 63 | . 7 9 10 2 17 2 3 3 . 4 3 . 3 . Drop 112 | 1 13 6 33 3 31 10 . 5 . . 4 2 3 1 Fire 321 | 5 60 28 68 13 129 . 16 . . 2 . . . . Melee 204 | . . . . . 2 38 . 55 18 26 2 5 55 3 Ram 1 | . . . . . . . . . . . . . . 1 Kick . | . . . . . . . . . . . . . . . Crush . | . . . . . . . . . . . . . . . Escape Stasis . | . . . . . . . . . . . . . . . Rewire . | . . . . . . . . . . . . . . . Trap 1 | . . . . . . . . . . . . 1 . . Miscellaneous . | . . . . . . . . . . . . . . . Route ------- -11/Scrapyard -10/Materials (discovered 4 exits: *Mat x3 / [*Min]) -10/Mines (discovered 3 exits: *Mat x2 / [*Exi]) -9/Materials (discovered 2 exits: *Mat / *Min) -9/Mines (discovered 2 exits: *Mat / *Zio) -8/Materials (discovered 2 exits: *Fac x2) -7/Factory -7/Waste -7/Factory (discovered 6 exits: *Fac x3 / Sto / *Low x2) -7/Lower Caves (discovered 2 exits: *Low / *Zio) -7/Lower Caves (discovered 2 exits: *Fac / *Zio) -7/Zion -6/Proximity Caves -6/Factory (discovered 2 exits: *Fac / Low) -6/Waste History --------- Turn | Location | Event 10 | -11/Scrapyard | Discovered new exit (range 15) 56 | -11/Scrapyard | Entered Materials 301 | -10/Materials | Build established: Mutant 402 | -10/Materials | Lost 3 parts (1p2n) 596 | -10/Materials | Discovered new exit (range 9) 662 | -10/Materials | Discovered new exit (range 14) 811 | -10/Materials | Discovered new exit (range 6) 963 | -10/Materials | Repaired Hover Unit 990 | -10/Materials | Repaired Assault Rifle 1034 | -10/Materials | Discovered new exit (range 9) 1101 | -10/Materials | Entered Mines 1151 | -10/Mines | Assembled infested the area 1156 | -10/Mines | Assisted by a Guerilla fighting off Assembled 1304 | -10/Mines | Core integrity fell below 50% 1334 | -10/Mines | Found a damaged Exp. Sensor Array with a note attached 1338 | -10/Mines | Found Prototype Device 1367 | -10/Mines | Deemed a non-threat by the Exiles lab entrance 1367 | -10/Mines | Discovered new exit (range 5) 1482 | -10/Mines | Discovered new exit (range 5) 1488 | -10/Mines | Received a Rocket Launcher from a helpful Derelict 1618 | -10/Mines | Learned location of 1 exit from Materials 1862 | -10/Mines | A weapon hastily lodged in a ceiling crevice suddenly fell to the ground 1938 | -10/Mines | Discovered new exit (range 13) 1997 | -10/Mines | Entered Materials 1997 | -9/Materials | Accompanied by 2 allies 1997 | -9/Materials | Evolved 2 slots: Propulsion x1, Utility x1 1998 | -9/Materials | Identified exit to Mines 2002 | -9/Materials | Led the pair of lost Derelicts to an unsafe place 2004 | -9/Materials | Identified Exp. Sensor Array 2477 | -9/Materials | Discovered new exit (range 16) 2772 | -9/Materials | Build established: Scavenger-Mutant 3373 | -9/Materials | Repaired Broken Exp. Sensor Array 4128 | -9/Materials | Entered Mines 4169 | -9/Mines | Met a Derelict shopkeep closing up shop 4307 | -9/Mines | Met a Derelict who couldn't figure out how to use a Trap Extractor 4321 | -9/Mines | Core integrity fell below 50% 4386 | -9/Mines | Learned location of Storage (-7) 4395 | -9/Mines | Learned location of Zion (-7) 4404 | -9/Mines | Received a Mining Laser from a helpful Derelict 4418 | -9/Mines | A Derelict revealed a hidden shortcut to a safe place 4442 | -9/Mines | Build established: Mutant 4468 | -9/Mines | Discovered new exit (range 9) 4482 | -9/Mines | Joined a pair of Derelicts in attacking an 0b10 outpost 4554 | -9/Mines | Entered Materials 4554 | -8/Materials | Accompanied by 1 ally 4554 | -8/Materials | Evolved 2 slots: Propulsion x1, Utility x1 4811 | -8/Materials | Destroyed 8 combat bots 5507 | -8/Materials | Discovered new exit (range 16) 6171 | -8/Materials | Repaired Imp. Medium Armor Plating 6183 | -8/Materials | Discovered new exit (range 6) 6396 | -8/Materials | Entered Factory 6396 | -7/Factory | Evolved 2 slots: Utility x2 6675 | -7/Factory | Build established: Hacker-Scout 6690 | -7/Factory | Fabricated Aerolev Unit? 6791 | -7/Factory | Local fabrication network quarantined 6841 | -7/Factory | Fabricated Aerolev Unit (x1) 7190 | -7/Factory | Manually triggered Chute Trap 7190 | -7/Factory | Sucked down chute 7190 | -7/Factory | Entered Waste 7190 | -7/Waste | The area was eerily silent 7243 | -7/Waste | Discovered new exit (range 12) 7245 | -7/Waste | 2 allies followed down the chute 7374 | -7/Waste | Identified exit to Factory 7379 | -7/Waste | Entered Factory 7379 | -7/Factory | Accompanied by 2 allies 7493 | -7/Factory | Build established: Hacker-Mutant 7534 | -7/Factory | Identified exit to Storage 7534 | -7/Factory | Identified exit to Lower Caves 7656 | -7/Factory | Fabricated Cld. Airjet (x1) 7672 | -7/Factory | Fabricated Cld. Airjet (x1) 7824 | -7/Factory | Repaired Broken Mic. Fission Core 7883 | -7/Factory | Repaired Linear Gravjet? 7953 | -7/Factory | Discovered new exit (range 8) 7964 | -7/Factory | Discovered new exit (range 7) 8399 | -7/Factory | Discovered new exit (range 8) 8519 | -7/Factory | Repaired Adv. Armor Integrity Analyzer 8663 | -7/Factory | Cargo convoy interrupted 8807 | -7/Factory | Entered Lower Caves 8807 | -7/Lower Caves | Accompanied by 1 ally 8838 | -7/Lower Caves | Learned 8 Factory zone layouts 8838 | -7/Lower Caves | Learned Extension emergency access door positions 8838 | -7/Lower Caves | Learned Research terminal intel 8838 | -7/Lower Caves | Learned Research garrison access intel 8989 | -7/Lower Caves | A Derelict revealed a hidden shortcut to a safe place 8992 | -7/Lower Caves | Identified exit to Zion 9287 | -7/Lower Caves | Learned Factory machine intel 9287 | -7/Lower Caves | Discovered new exit (range 5) 9288 | -7/Lower Caves | Identified exit to Lower Caves 9298 | -7/Lower Caves | Entered another Lower Caves area 9298 | -7/Lower Caves | Accompanied by 1 ally 9370 | -7/Lower Caves | Discovered new exit (range 15) 9375 | -7/Lower Caves | Identified exit to Factory 9722 | -7/Lower Caves | Discovered exit to Zion (range 13) 9879 | -7/Lower Caves | Entered Zion 9879 | -7/Zion | Accompanied by 1 ally 9900 | -7/Zion | Discovered new exit (range 15) 9951 | -7/Zion | Given A8's code to call for help 10067 | -7/Zion | Found GAL Module 10100 | -7/Zion | Received a hallucinogenic algorithm 10112 | -7/Zion | Found CR-A16's Pointy Stick 10296 | -7/Zion | Gained Derelict followers 10312 | -7/Zion | Identified exit to Proximity Caves 10348 | -7/Zion | Entered Proximity Caves 10348 | -6/Proximity Caves | Accompanied by 3 allies 10412 | -6/Proximity Caves | Attracted the attention of an 0b10 outpost 10418 | -6/Proximity Caves | Learned Factory machine intel 10501 | -6/Proximity Caves | Attracted the attention of an 0b10 checkpoint 10520 | -6/Proximity Caves | Discovered exit to Factory (range 7) 10525 | -6/Proximity Caves | Entered Factory 10525 | -6/Factory | Evolved 2 slots: Utility x2 10526 | -6/Factory | Identified exit to Factory 10526 | -6/Factory | Identified exit to Lower Caves 10527 | -6/Factory | Loaded intel: 223 machine locations 10628 | -6/Factory | Repaired Exp. Sensor Array 11039 | -6/Factory | Fabricated Cld. Aerolev Unit? 11162 | -6/Factory | Lost 3 parts (2n1w) 11215 | -6/Factory | Fabricated Powered Armor (x2) 11319 | -6/Factory | Fabricated Cld. Aerolev Unit (x1) 11508 | -6/Factory | Sucked down chute 11508 | -6/Factory | Entered Waste 11514 | -6/Waste | Spotted C-40 Crusher 11515 | -6/Waste | Spotted C-40 Crusher 11516 | -6/Waste | Spotted C-40 Crusher 11518 | -6/Waste | Spotted C-40 Crusher 11523 | -6/Waste | EMP discharged 11523 | -6/Waste | System corruption reached 10% 11553 | -6/Waste | Spotted C-40 Crusher 11555 | -6/Waste | Crushed by Compactor (1 part destroyed, 2 dropped) 11558 | -6/Waste | Crushed by Compactor (1 part destroyed, 1 dropped) 11564 | -6/Waste | Crushed by Compactor (1 part destroyed, 2 dropped) 11567 | -6/Waste | Crushed by Compactor (1 part destroyed, 2 dropped) 11567 | -6/Waste | Crushed by Compactor (1 part destroyed, 2 dropped) 11570 | -6/Waste | Crushed by Compactor (1 part destroyed, 1 dropped) 11570 | -6/Waste | Crushed by Compactor (1 part destroyed, 1 dropped) 11573 | -6/Waste | Crushed by Compactor (1 part destroyed, 2 dropped) 11573 | -6/Waste | Self-destructed Last Messages --------------- 11567_ Hacking Suite crushed. 11567_ Med. Storage Unit crushed. 11567_ Cld. Aerolev Unit crushed. 11567_ Med. Storage Unit crushed. 11567_ Imp. Antigrav System crushed. 11567_ Mak. Sword crushed. 11567_ Hacking Suite crushed. 11567_ Mak. System Shield crushed. 11568_ Slammed into C-40 Crusher. 11568_ Imp. Signal Interpreter permanently disabled. 11568_ Destabilizing: Short circuit. 11570_ CR-A16's Pointy Stick crushed. 11570_ Component Analysis Suite crushed. 11570_ Adv. Armor Integrity Analyzer crushed. 11570_ Bore Cannon crushed. 11570_ Hacking Suite crushed. 11570_ Broken Imp. Signal Interpreter crushed. 11573_ Powered Armor crushed. 11573_ Slug Cannon crushed. 11573_ Powered Armor crushed. Map ----- +----------------------------------------------------+ | ??????????????????????????? #??????????????? | | ??????????????????????????? #??????????????? | | ??????????????????????????? #??????????????? | | ??????????????????????????? =#??????????????? | | ??????????????????????????? #??????????????? | | ??????????????????????????? #??????????????? | | ??????????????????????????? ???????????????? | | ??????????????????????????? ????????????????? | | ???????????????????????????# #????????????????? | | ???????????????????????????# #????????????????? | | ???????????????????????????# #????????????????? | | ???????????????????????????# #????????????????? | | ?????????????????????????### #????????????????? | | ?????????????????????????# #????????????????? | | ?????????????????????????# #???????????#????? | | ?????????????????????????# #?????????? #????? | | ?????????????????????????# #?????????? #????? | | ?????????????????????????### #????????? #????? | | ?????????????############??# #???????? #????? | | ?????????????# = #??# #???????? #????? | | ?????????????# #??# #??????? #????? | | ?????????????# #### ######## ###### | | ?????????????# CC | | ?????????????# ! CCCC CC | | ?????????????# CCCCCC | | ?????????????# =@CCCC | | ?????????????# ####CC ######## ####?? | | ?????????????# #??# #????????? #????? | | ?????????????# #??#] #???????????#????? | | ?????????????############??# #????????????????? | | ???????????????????????????# #????????????????? | | ??????????????????????????? #????????????????? | | ?????????????????????????? #????????????????? | | ?????????????????????????# #????????????????? | | ?????????????????????????# #????????????????? | | ?????????????????????????### #????????????????? | | ???????????????????????????# #????????????????? | | ???????????????????????????# #????????????????? | | ???????????????????????????# #????????????????? | | ???????????????????????????# =#????????????????? | | ????????????????????????????####?????????????????? | | ?????????????????????????????????????????????????? | | ?????????????????????????????????????????????????? | | ?????????????????????????????????????????????????? | | ?????????????????????????????????????????????????? | | ?????????????????????????????????????????????????? | | ?????????????????????????????????????????????????? | | ?????????????????????????????????????????????????? | | ?????????????????????????????????????????????????? | | ?????????????????????????????????????????????????? | +----------------------------------------------------+ Best States ------------- Heat Dissipation 37 Energy Generation 18 Energy Capacity 400 Matter Stores 300 Matter Capacity 300 Sight Range 16 Robot Scan Range 20 Terrain Scan Density 10 Armor Coverage 300 Utility Shielding 33 Weapon Shielding 33 Evasion (%) 58 Targeting Accuracy 8 Offensive Hacking 40 Defensive Hacking 11 Item Schematics ----------------- Exp. Sensor Array | -9/Materials | Scanalyzed Bore Cannon | -9/Materials | Scanalyzed Aerolev Unit | -8/Materials | Scanalyzed System Restoration Module | -7/Factory | Downloaded Cld. Airjet | -7/Factory | Hacked Cld. Aerolev Unit | -6/Factory | Scanalyzed Exp. Power Shielding | -6/Factory | Scanalyzed Adv. Signal Interpreter | -6/Factory | Hacked Powered Armor | -6/Factory | Hacked Robot Schematics ------------------ None Fabricated ------------ Aerolev Unit | x1 | -7/Factory Aerolev Unit | x1 | -7/Factory Cld. Airjet | x1 | -7/Factory Cld. Airjet | x1 | -7/Factory Cld. Aerolev Unit | x1 | -6/Factory Powered Armor | x2 | -6/Factory Cld. Aerolev Unit | x1 | -6/Factory Alien Tech Used ----------------- None Achievements -------------- None Challenges ------------ None Game ------ Seed SwordPhaseScanner Manual? 0 Play Time 03:15:08 Cumulative 810.2 hours Start 2021.07.24 @ 12:21:45 End 2021.07.24 @ 16:56:43 Sessions 1 Manual Loads 0 Difficulty Rogue Special Mode None Game No. 433 Rogue 433 Adventurer 0 Explorer 0 Win Type - Total 64 Types 35/5/13/6/1/1/3/0/0 Lore% 88 Gallery% 88 Achievement% 76 Wizard Run 0 Options --------- ASCII 0 Keyboard 0 Movement Mouse Keybinds 0 Fullscreen 0 Font 32/Smallcaps Map View 76x50 Tactical HUD 1 Map Filters NONE Filters NONE Steam 0 RUN: d6f83d67-8ca2-4091-a25d-41f6ad45229a